bitfinex-derivatives/quotes_BTCF0:USTF0_20210708
["timestamp","ask_amount","ask_price","bid_price","bid_amount"]
[1625705093503,0.001,33211.0,33209.0,0.01356398]
[1625705093656,0.32944,33211.0,33210.0,0.01356393]
[1625705093804,0.38644,33211.0,33210.0,0.01356393]
[1625705093954,0.38644,33211.0,33208.0,0.01356397]
[1625705094255,0.24057544,33209.0,33207.0,0.24057544]
[1625705094404,0.057,33208.0,33207.0,0.24057544]
[1625705094703,0.057,33208.0,33207.0,0.25413931]
[1625705095003,0.057,33208.0,33207.0,0.42946608]
[1625705095529,0.057,33208.0,33207.0,0.25413931]
[1625705095981,0.24057544,33209.0,33207.0,0.42948822]
[1625705096430,0.24057544,33209.0,33208.0,0.01356413]
[1625705097182,0.24057544,33209.0,33208.0,0.1889875]
[1625705097930,0.24057544,33209.0,33208.0,0.5253075]
[1625705098082,0.24057544,33209.0,33208.0,1.40247232]
[1625705098231,0.24057544,33209.0,33208.0,1.42018958]
[1625705098383,0.24057544,33209.0,33208.0,4.05144934]
[1625705099131,0.24057544,33209.0,33208.0,4.06445401]
[1625705099582,0.24057544,33209.0,33208.0,4.03373208]
[1625705099733,0.24057544,33209.0,33208.0,2.63039354]
[1625705100484,0.24057544,33209.0,33208.0,1.40247232]
[1625705101388,0.29757544,33209.0,33208.0,1.40247232]
[1625705101534,0.29757544,33209.0,33208.0,0.01356413]
[1625705101985,0.57895544,33209.0,33208.0,0.01356413]
[1625705102211,0.81953088,33209.0,33208.0,0.01356413]
[1625705102362,0.81953088,33209.0,33207.0,0.01356504]
[1625705102665,0.81953088,33209.0,33205.0,0.18569637]
[1625705102666,0.81953088,33209.0,33208.0,0.01356542]
[1625705102810,0.81953088,33209.0,33208.0,0.00470444]
[1625705102961,0.81953088,33209.0,33205.0,0.01]
[1625705102962,0.9887455,33209.0,33205.0,0.01]
[1625705103111,1.9887455,33209.0,33206.0,0.00470517]
[1625705103262,0.16917707,33207.0,33206.0,0.00470517]
[1625705103412,1.22617707,33207.0,33206.0,0.00470517]
[1625705103560,1.057,33207.0,33206.0,5.17e-06]
[1625705103711,5.4646,33207.0,33205.0,0.00469991]
[1625705104012,0.16984494,33206.0,33205.0,0.00469991]
[1625705104162,0.22684494,33206.0,33205.0,0.00469991]
[1625705104312,0.46742038,33206.0,33205.0,0.00469991]
[1625705104762,0.29757544,33206.0,33205.0,0.00469991]
[1625705107314,1.32380998,33206.0,33205.0,0.00469991]
[1625705107465,2.52306616,33206.0,33205.0,0.00469991]
[1625705107762,3.52306616,33206.0,33204.0,0.001]
[1625705107913,2.22716209,33205.0,33204.0,0.001]
[1625705108063,2.28416209,33205.0,33204.0,0.001]
[1625705108365,2.52473753,33205.0,33204.0,0.00569443]
[1625705108664,2.52473753,33205.0,33204.0,0.001]
[1625705108965,1.32550958,33205.0,33204.0,0.00569434]
[1625705109115,2.52609205,33205.0,33204.0,0.001]
[1625705109417,1.32550958,33205.0,33204.0,0.00569431]
[1625705110092,2.52784791,33205.0,33204.0,0.00569431]
[1625705110241,1.32550958,33205.0,33204.0,0.00569431]
[1625705110541,2.52774191,33205.0,33204.0,0.00569431]
[1625705110842,1.32550958,33205.0,33204.0,0.00569431]
[1625705111141,0.24057544,33205.0,33204.0,0.18190522]
[1625705111291,0.24057544,33205.0,33204.0,1.0629242]
[1625705111592,0.24057544,33205.0,33204.0,2.29672194]
[1625705111894,0.29757544,33205.0,33204.0,2.29672194]
[1625705112044,0.29757544,33205.0,33204.0,0.00569431]
[1625705112493,0.29757544,33205.0,33204.0,0.18196603]
[1625705112644,0.24057544,33205.0,33204.0,0.18196603]
[1625705112943,0.49878033,33205.0,33204.0,0.71076183]
[1625705113093,0.49878033,33205.0,33204.0,0.98358183]
[1625705113243,0.32670104,33205.0,33204.0,2.0411778]
[1625705113394,0.49861363,33205.0,33204.0,2.0411778]
[1625705113844,0.46948803,33205.0,33204.0,0.98358183]
[1625705114444,0.29757544,33205.0,33204.0,0.98358183]
[1625705114593,0.29757544,33205.0,33204.0,0.27851431]
[1625705114744,0.29757544,33205.0,33204.0,0.00569431]
[1625705115048,0.98340827,33205.0,33204.0,0.23624431]
[1625705115195,0.92640827,33205.0,33204.0,0.23624431]
[1625705115345,0.41210395,33205.0,33204.0,0.94147016]
[1625705115645,0.41210395,33205.0,33204.0,1.99953666]
[1625705115795,0.49841415,33205.0,33204.0,1.99953666]
[1625705116245,0.41210395,33205.0,33204.0,1.99953666]
[1625705116396,0.46910395,33205.0,33204.0,1.99953666]
[1625705116546,0.98798198,33205.0,33204.0,0.94147016]
[1625705117372,0.98798198,33205.0,33204.0,0.94047016]
[1625705118723,2.02612234,33205.0,33204.0,0.23524431]
[1625705118873,2.02612234,33205.0,33204.0,0.4116017]
[1625705119476,0.98798198,33205.0,33204.0,0.94066521]
[1625705119625,0.29757544,33205.0,33204.0,1.99874425]
[1625705121579,0.29757544,33205.0,33204.0,2.00760631]
[1625705121728,0.29757544,33205.0,33204.0,1.99874425]
[1625705121878,0.99530104,33205.0,33204.0,1.99874425]
[1625705122329,0.99530104,33205.0,33204.0,0.94066521]
[1625705122779,2.04227466,33205.0,33204.0,0.94066521]
[1625705123080,2.04227466,33205.0,33204.0,0.9359709]
[1625705123229,0.99530104,33205.0,33204.0,0.940669]
[1625705123756,2.04224598,33205.0,33204.0,0.940669]
[1625705124433,2.04224598,33205.0,33203.0,0.44029954]
[1625705124582,2.54224598,33205.0,33200.0,1.23536502]
[1625705124732,2.54224598,33205.0,33201.0,0.17635947]
[1625705124733,2.61236285,33204.0,33201.0,0.17635947]
[1625705124881,0.057,33203.0,33201.0,0.18105315]
[1625705125034,2.61005746,33202.0,33201.0,0.00469368]
[1625705125182,2.66705746,33202.0,33200.0,0.001]
[1625705125333,7.61285746,33202.0,33200.0,0.001]
[1625705125485,5.0028,33202.0,33201.0,0.00469366]
[1625705125782,7.61740828,33202.0,33201.0,0.00469366]
[1625705126382,8.09855916,33202.0,33201.0,0.00469366]
[1625705127884,9.09855916,33202.0,33201.0,0.00469366]
[1625705128485,8.09855916,33202.0,33201.0,0.00469366]
[1625705129238,9.09855916,33202.0,33201.0,0.00469366]
[1625705129540,8.09855916,33202.0,33201.0,0.00469366]
[1625705129839,9.09855916,33202.0,33201.0,0.00469366]
[1625705130291,8.09855916,33202.0,33201.0,0.00469366]
[1625705130892,9.09855916,33202.0,33201.0,0.00469366]
[1625705131494,10.66700475,33202.0,33201.0,0.00469366]
[1625705131946,9.66700475,33202.0,33201.0,0.00469366]
[1625705132098,9.09855916,33202.0,33201.0,0.00469366]
[1625705132546,10.66683522,33202.0,33201.0,0.00469366]
[1625705132696,10.66683522,33202.0,33200.0,0.00089366]
[1625705132846,3.61422454,33201.0,33200.0,0.00089366]
[1625705132998,3.67122454,33201.0,33200.0,0.00089366]
[1625705133297,3.67122454,33201.0,33200.0,0.00558017]
[1625705134647,3.67122454,33201.0,33200.0,0.00118017]
[1625705135252,3.67122454,33201.0,33200.0,0.00218017]
[1625705138550,2.67122454,33201.0,33200.0,0.00218017]
[1625705138851,3.67122454,33201.0,33200.0,0.00218017]
[1625705139002,4.17122454,33201.0,33200.0,0.00218017]
[1625705139303,4.17122454,33201.0,33200.0,0.00118017]
[1625705139454,3.67122454,33201.0,33200.0,0.00118017]
[1625705139830,4.17122454,33201.0,33200.0,0.00118017]
[1625705139980,3.67122454,33201.0,33200.0,0.00118017]
[1625705140130,2.67122454,33201.0,33200.0,0.00118017]
[1625705140280,3.67122454,33201.0,33200.0,0.00118017]
[1625705140580,3.66836707,33201.0,33200.0,0.00118017]
[1625705141931,2.66836707,33201.0,33200.0,0.00118017]
[1625705142082,3.01430707,33201.0,33200.0,0.00118017]
[1625705142233,4.01430707,33201.0,33200.0,0.00118017]
[1625705142909,5.58264827,33201.0,33200.0,0.00118017]
[1625705144336,4.01430707,33201.0,33200.0,0.00118017]
[1625705144635,5.58122351,33201.0,33200.0,0.00118017]
[1625705145763,6.08122351,33201.0,33200.0,0.00118017]
[1625705145912,6.60423506,33201.0,33200.0,0.00118017]
[1625705146671,6.60423506,33201.0,33199.0,0.935]
[1625705146966,4.70612753,33200.0,33199.0,0.935]
[1625705147113,5.26312753,33200.0,33199.0,0.935]
[1625705147263,6.26312753,33200.0,33199.0,0.935]
[1625705147412,6.26312753,33200.0,33199.0,0.8957]
[1625705147562,6.26312753,33200.0,33199.0,0.90038248]
[1625705147863,6.26312753,33200.0,33199.0,0.8957]
[1625705148163,5.76312753,33200.0,33199.0,0.9003824]
[1625705148324,6.26312753,33200.0,33199.0,0.9003824]
[1625705148468,6.50370297,33200.0,33199.0,0.9003824]
[1625705148918,6.50370297,33200.0,33199.0,0.8487824]
[1625705149064,6.50370297,33200.0,33199.0,0.7698824]
[1625705149214,6.50370297,33200.0,33199.0,0.6135824]
[1625705150492,6.50370297,33200.0,33199.0,0.0046824]
[1625705150791,6.50370297,33200.0,33197.0,0.0046824]
[1625705151091,4.70143162,33198.0,33197.0,0.0046824]
[1625705151247,6.25843162,33198.0,33197.0,0.0046824]
[1625705152222,6.34853162,33198.0,33197.0,8.24e-05]
[1625705152518,6.58910706,33198.0,33197.0,8.24e-05]
[1625705154699,7.63612981,33198.0,33197.0,8.24e-05]
[1625705156576,7.63612981,33198.0,33191.0,0.002]
[1625705156875,4.19557533,33192.0,33191.0,0.002]
[1625705157025,4.49632533,33192.0,33191.0,0.002]
[1625705157325,4.49632533,33192.0,33191.0,0.00467444]
[1625705157477,5.49632533,33192.0,33188.0,0.77727444]
[1625705157626,2.79940554,33189.0,33188.0,0.77727444]
[1625705157775,2.85640554,33189.0,33188.0,0.77727444]
[1625705158076,4.25584879,33189.0,33188.0,0.78194349]
[1625705158610,3.57813186,33189.0,33188.0,0.78194349]
[1625705158750,5.97951233,33189.0,33188.0,0.78194349]
[1625705158901,4.97951233,33189.0,33188.0,0.78194349]
[1625705159053,3.57813186,33189.0,33188.0,0.78194349]
[1625705159577,4.98391903,33189.0,33188.0,0.78194349]
[1625705162281,5.98391903,33189.0,33188.0,0.78194349]
[1625705162581,4.92691903,33189.0,33188.0,0.78194349]
[1625705162908,4.68634359,33189.0,33188.0,1.00352349]
[1625705163039,2.05587116,33189.0,33188.0,1.00352349]
[1625705163490,0.65687093,33189.0,33188.0,1.54082073]
[1625705163711,0.48115088,33189.0,33188.0,2.59759445]
[1625705164158,0.08802995,33191.0,33188.0,2.59759445]
[1625705164311,1.05442664,33194.0,33188.0,2.59759445]
[1625705164460,1.05507401,33195.0,33190.0,1.05675258]
[1625705164610,1.05656597,33197.0,33194.0,0.72172632]
[1625705164763,1.00583096,33199.0,33194.0,0.72172632]
[1625705164942,0.001,33200.0,33194.0,0.72172632]
[1625705165075,0.001,33200.0,33195.0,0.01353074]
[1625705165235,0.001,33200.0,33196.0,1.40564756]
[1625705165378,0.001,33200.0,33198.0,1.40460233]
[1625705165686,0.001,33200.0,33199.0,1.41667391]
[1625705165963,0.001,33200.0,33199.0,3.00899191]
[1625705166117,0.001,33200.0,33199.0,4.96084485]
[1625705166263,0.003,33201.0,33199.0,4.96084485]
[1625705166412,0.002,33211.0,33200.0,0.01297737]
[1625705166563,0.002,33211.0,33210.0,0.96230176]
[1625705166713,0.002,33211.0,33210.0,1.24186176]
[1625705167015,0.002,33211.0,33210.0,1.25538567]
[1625705167463,0.002,33211.0,33210.0,1.24652555]
[1625705171976,0.002,33211.0,33210.0,1.24186176]
[1625705172495,0.002,33211.0,33210.0,1.33096176]
[1625705172944,0.002,33211.0,33210.0,1.24186176]
[1625705173621,0.2929,33223.0,33210.0,1.24186176]
[1625705174071,0.2929,33223.0,33211.0,0.00466248]
[1625705174221,0.2929,33223.0,33212.0,1.39097831]
[1625705174671,0.2929,33223.0,33222.0,0.72172632]
[1625705174821,0.2929,33223.0,33222.0,4.93722632]
[1625705180749,0.004,33230.0,33222.0,4.93722632]
[1625705181948,0.004,33230.0,33223.0,0.0903]
[1625705182402,0.2929,33239.0,33223.0,0.5903]
[1625705182702,0.2929,33239.0,33238.0,0.96230176]
[1625705182851,0.2929,33239.0,33238.0,1.22825176]
[1625705183002,1.63974844,33247.0,33238.0,1.22825176]
[1625705183452,1.63974844,33247.0,33243.0,4.817]
[1625705183453,0.24057544,33247.0,33243.0,4.817]
[1625705183754,1.39753653,33249.0,33243.0,4.817]
[1625705183904,0.24057544,33250.0,33243.0,4.817]
[1625705183905,1.63792593,33250.0,33243.0,4.817]
[1625705184655,0.69857136,33246.0,33243.0,4.817]
[1625705184806,0.69857136,33246.0,33245.0,0.48115088]
[1625705184955,0.69856261,33247.0,33245.0,0.73961088]
[1625705185405,0.697694,33248.0,33245.0,0.73961088]
[1625705185855,0.69768793,33249.0,33245.0,0.73961088]
[1625705186758,0.24057544,33246.0,33245.0,0.73961088]
[1625705187884,0.69685778,33248.0,33245.0,0.73961088]
[1625705188034,0.69685842,33249.0,33245.0,0.73961088]
[1625705188485,0.69685842,33249.0,33246.0,0.00465929]
[1625705188635,0.24057544,33250.0,33246.0,0.00465929]
[1625705188785,0.24057544,33250.0,33249.0,0.24057544]
[1625705188934,0.69680561,33251.0,33249.0,0.24057544]
[1625705189311,0.69599643,33252.0,33249.0,0.24057544]
[1625705189461,0.75299643,33252.0,33249.0,0.24057544]
[1625705189611,0.69602571,33250.0,33249.0,0.24057544]
[1625705190213,0.69602928,33251.0,33249.0,0.24057544]
[1625705190362,0.69602928,33251.0,33249.0,0.57177544]
[1625705191416,0.69536485,33252.0,33249.0,0.57177544]
[1625705192016,0.69538577,33251.0,33249.0,0.57177544]
[1625705193818,0.75238577,33251.0,33249.0,0.57177544]
[1625705193969,0.69493179,33250.0,33249.0,0.57177544]
[1625705195170,0.69477271,33251.0,33249.0,0.57177544]
[1625705195620,0.75177271,33251.0,33249.0,0.57177544]
[1625705195772,0.75177271,33251.0,33249.0,0.24057544]
[1625705195921,0.69452911,33250.0,33249.0,0.24057544]
[1625705196070,0.96345911,33250.0,33245.0,0.48115088]
[1625705196222,0.69456134,33248.0,33245.0,0.48115088]
[1625705196521,0.75155817,33249.0,33245.0,0.48115088]
[1625705196670,0.75155817,33249.0,33246.0,0.0046643]
[1625705196821,0.24057544,33247.0,33246.0,0.0046643]
[1625705196970,0.29757544,33247.0,33246.0,0.0046643]
[1625705197121,0.29757544,33247.0,33245.0,0.24057544]
[1625705197271,2.03391087,33247.0,33242.0,0.001]
[1625705197420,2.03391087,33247.0,33215.0,0.0903]
[1625705197421,0.69456777,33245.0,33243.0,0.002]
[1625705197573,0.75157716,33244.0,33243.0,0.001]
[1625705197871,1.79338345,33244.0,33243.0,0.001]
[1625705198847,2.27453433,33244.0,33243.0,0.001]
[1625705199009,0.53815088,33244.0,33243.0,0.00566497]
[1625705199150,0.48115088,33244.0,33243.0,0.00566497]
[1625705200351,0.53815088,33244.0,33243.0,0.00766497]
[1625705200576,0.48115088,33244.0,33243.0,0.00766497]
[1625705204186,0.057,33249.0,33243.0,0.00766497]
[1625705204562,0.057,33249.0,33244.0,0.00466768]
[1625705204860,0.057,33249.0,33248.0,0.24057544]
[1625705205310,0.057,33249.0,33248.0,0.24524312]
[1625705205465,0.057,33250.0,33248.0,0.24524312]
[1625705205913,0.75124945,33250.0,33249.0,0.0046678]
[1625705206062,0.75124945,33250.0,33248.0,0.24057544]
[1625705206364,0.001,33249.0,33248.0,0.24057544]
[1625705206663,0.001,33249.0,33248.0,0.24523759]
[1625705206812,0.24157544,33249.0,33248.0,0.24523759]
[1625705207111,0.29857544,33249.0,33248.0,0.24523759]
[1625705208461,0.24157544,33249.0,33248.0,0.24523759]
[1625705209212,0.24157544,33249.0,33248.0,0.33653759]
[1625705209588,0.29857544,33249.0,33248.0,0.33653759]
[1625705210039,0.29857544,33249.0,33248.0,0.24523759]
[1625705210715,0.29857544,33249.0,33248.0,0.254092]
[1625705211016,0.29857544,33249.0,33248.0,0.345392]
[1625705211318,0.29857544,33249.0,33248.0,0.254092]
[1625705211468,0.24157544,33249.0,33248.0,0.254092]
[1625705211618,0.24157544,33249.0,33248.0,0.575362]
[1625705214400,0.29857544,33249.0,33248.0,0.575362]
[1625705214700,0.29857544,33249.0,33248.0,0.254092]
[1625705215000,0.29857544,33249.0,33248.0,0.24523759]
[1625705217336,0.29857544,33249.0,33248.0,0.56935759]
[1625705218383,0.29757544,33249.0,33248.0,0.56935759]
[1625705224312,0.99886112,33249.0,33248.0,0.56935759]
[1625705225288,2.05219707,33249.0,33248.0,0.56935759]
[1625705225663,2.05219707,33249.0,33248.0,5.58895759]
[1625705226639,1.81162163,33249.0,33248.0,5.58895759]
[1625705226942,0.70224887,33250.0,33248.0,5.58895759]
[1625705227089,0.70224887,33250.0,33249.0,0.24057544]
[1625705227242,4.887e-05,33250.0,33249.0,0.24522441]
[1625705227544,1.05373455,33253.0,33249.0,0.24522441]
[1625705227691,0.001,33254.0,33249.0,0.24522441]
[1625705227841,0.001,33254.0,33249.0,0.25407659]
[1625705228141,0.001,33254.0,33250.0,0.01350006]
[1625705228907,1.69694359,33263.0,33250.0,0.01350006]
[1625705228908,1.05300172,33263.0,33252.0,1.02668911]
[1625705229074,0.55230172,33263.0,33262.0,0.72172632]
[1625705229209,1.22818774,33271.0,33262.0,1.00981632]
[1625705229342,1.28518774,33271.0,33262.0,1.00981632]
[1625705229493,1.28518774,33271.0,33270.0,3.7541]
[1625705229641,1.28518774,33271.0,33270.0,4.05696]
[1625705229866,0.057,33271.0,33270.0,4.05696]
[1625705230016,0.057,33271.0,33270.0,4.06160565]
[1625705230167,1.28586628,33271.0,33270.0,4.06160565]
[1625705231069,1.28586628,33271.0,33270.0,4.78333197]
[1625705231368,0.057,33271.0,33270.0,4.78333197]
[1625705231819,1.2856163,33271.0,33270.0,4.78333197]
[1625705232796,0.057,33271.0,33270.0,4.78333197]
[1625705233245,1.22754051,33273.0,33270.0,4.78333197]
[1625705233397,1.22754051,33273.0,33270.0,4.84033197]
[1625705233545,1.40388756,33274.0,33270.0,4.84033197]
[1625705233546,1.22840635,33274.0,33270.0,4.84033197]
[1625705233698,1.22840635,33274.0,33271.0,0.00464368]
[1625705234146,1.22842956,33272.0,33271.0,0.00464368]
[1625705234296,1.22842956,33272.0,33270.0,4.53282632]
[1625705234601,1.40388772,33273.0,33270.0,4.47582632]
[1625705234602,1.22842959,33273.0,33270.0,4.47582632]
[1625705234899,1.22741467,33274.0,33270.0,4.47582632]
[1625705235048,1.22741467,33274.0,33271.0,0.24057544]
[1625705235196,1.22741467,33274.0,33271.0,0.29757544]
[1625705235649,1.46830916,33278.0,33272.0,0.00464317]
[1625705235952,1.22771834,33277.0,33272.0,0.00464317]
[1625705236400,1.22871834,33277.0,33272.0,0.00464317]
[1625705237000,1.22871834,33277.0,33271.0,0.29757544]
[1625705237298,0.001,33277.0,33271.0,0.29757544]
[1625705237449,0.001,33277.0,33272.0,0.004643]
[1625705237748,0.001,33277.0,33271.0,0.29757544]
[1625705237899,1.22814226,33277.0,33271.0,0.29757544]
[1625705238801,0.001,33277.0,33271.0,0.29757544]
[1625705239099,0.001,33277.0,33276.0,0.24057544]
[1625705239250,0.001,33277.0,33276.0,0.52612544]
[1625705239549,1.22783547,33277.0,33276.0,0.52612544]
[1625705240300,1.22783547,33277.0,33276.0,0.24057544]
[1625705240450,2.63000546,33277.0,33276.0,0.24057544]
[1625705240751,2.63000546,33277.0,33271.0,0.24057544]
[1625705240901,2.91075546,33277.0,33270.0,0.001]
[1625705241056,0.72172632,33271.0,33270.0,0.001]
[1625705241202,3.35015149,33271.0,33270.0,0.001]
[1625705241517,4.92767591,33271.0,33262.0,0.24057544]
[1625705241661,1.2269875,33266.0,33262.0,0.24057544]
[1625705241802,1.5376275,33266.0,33262.0,0.24057544]
[1625705242253,2.9399758,33266.0,33262.0,0.24057544]
[1625705243078,3.42112668,33266.0,33256.0,0.057]
[1625705243229,2.01877838,33266.0,33256.0,0.057]
[1625705243604,3.42112979,33266.0,33256.0,0.057]
[1625705244207,3.42112979,33266.0,33255.0,0.24457544]
[1625705244356,3.42112979,33266.0,33255.0,0.30157544]
[1625705244732,3.11048979,33266.0,33255.0,0.30157544]
[1625705245037,0.48115088,33266.0,33255.0,0.30157544]
[1625705245185,0.48115088,33266.0,33265.0,0.48315088]
[1625705245332,0.48115088,33266.0,33265.0,5.13895088]
[1625705245783,0.48115088,33266.0,33265.0,4.6578]
[1625705246985,0.48115088,33266.0,33265.0,0.002]
[1625705247437,0.48115088,33266.0,33265.0,0.31627365]
[1625705247585,0.48115088,33266.0,33265.0,0.31163]
[1625705247889,0.24057544,33266.0,33265.0,0.31627297]
[1625705248038,0.24057544,33266.0,33265.0,5.43767297]
[1625705248339,0.24057544,33266.0,33265.0,5.43667297]
[1625705248640,0.24057544,33271.0,33265.0,5.43667297]
[1625705248791,0.24057544,33271.0,33266.0,0.057]
[1625705248941,0.24057544,33271.0,33266.0,0.06164264]
[1625705249090,0.24057544,33271.0,33270.0,0.48115088]
[1625705249540,0.24057544,33271.0,33270.0,0.4857937]
[1625705250290,0.24057544,33271.0,33270.0,0.48115088]
[1625705250591,0.24057544,33271.0,33270.0,0.48579384]
[1625705252845,0.24057544,33271.0,33270.0,0.2452184]
[1625705253370,1.46625545,33271.0,33270.0,0.2452184]
[1625705253520,1.46625545,33271.0,33270.0,0.24057544]
[1625705253670,2.8670655,33271.0,33270.0,0.24057544]
[1625705254196,1.46625545,33271.0,33270.0,0.24057544]
[1625705254497,1.99166986,33271.0,33270.0,0.24522137]
[1625705255173,0.76598985,33271.0,33270.0,0.24522137]
[1625705255473,1.99172541,33271.0,33270.0,0.24522137]
[1625705255771,0.76598985,33271.0,33270.0,0.24522137]
[1625705257273,0.76598985,33271.0,33270.0,0.24622137]
[1625705258625,1.99203592,33271.0,33270.0,0.24622137]
[1625705259075,3.04304296,33271.0,33270.0,0.24622137]
[1625705260128,1.81699689,33271.0,33270.0,0.24622137]
[1625705260279,3.04349669,33271.0,33270.0,0.24622137]
[1625705260804,1.81699689,33271.0,33270.0,0.24622137]
[1625705261254,3.04386107,33271.0,33270.0,0.24622137]
[1625705267713,4.44742294,33271.0,33270.0,0.24622137]
[1625705269140,3.04386107,33271.0,33270.0,0.24622137]
[1625705271244,4.44810513,33271.0,33270.0,0.24622137]
[1625705272147,3.04386107,33271.0,33270.0,0.24622137]
[1625705273272,4.44897002,33271.0,33270.0,0.24622137]
[1625705274774,4.44897002,33271.0,33270.0,0.49802137]
[1625705275075,0.24057544,33271.0,33270.0,0.5068676]
[1625705275527,0.76781994,33271.0,33270.0,0.49802137]
[1625705275826,0.24057544,33271.0,33270.0,0.49802137]
[1625705275976,1.05431605,33273.0,33270.0,0.49802137]
[1625705276128,0.52724952,33271.0,33270.0,0.55502137]
[1625705276277,0.52724952,33271.0,33270.0,0.49802137]
[1625705276428,0.52717871,33275.0,33271.0,0.01349087]
[1625705276652,0.8200686,33276.0,33271.0,0.50758476]
[1625705276803,0.052562,33277.0,33272.0,0.057]
[1625705276953,0.14827855,33281.0,33272.0,0.07048916]
[1625705277141,0.14827855,33281.0,33274.0,1.35110516]
[1625705277294,1.22370821,33290.0,33280.0,0.72172632]
[1625705277410,0.9401,33307.0,33280.0,0.72172632]
[1625705277411,0.7141,33300.0,33281.0,0.56941689]
[1625705277632,0.9401,33307.0,33288.0,1.51269448]
[1625705277783,0.9401,33307.0,33289.0,0.557]
[1625705277931,0.9401,33307.0,33289.0,1.56450428]
[1625705278081,0.9401,33307.0,33290.0,0.01348168]
[1625705278230,1.57708309,33312.0,33290.0,0.01348168]
[1625705278382,1.5769953,33314.0,33290.0,0.01348168]
[1625705278681,1.5769953,33314.0,33300.0,3.6289]
[1625705278832,1.5768827,33317.0,33301.0,0.057]
[1625705278982,1.57685877,33316.0,33301.0,0.057]
[1625705279282,1.57685877,33316.0,33315.0,0.48115088]
[1625705279431,1.57685877,33316.0,33315.0,0.73665088]
[1625705279732,1.57411129,33318.0,33315.0,0.73665088]
[1625705279882,0.2929,33317.0,33315.0,0.73665088]
[1625705280034,4.1471,33317.0,33315.0,0.73665088]
[1625705280182,5.72127574,33317.0,33315.0,0.73665088]
[1625705280486,5.72127574,33317.0,33315.0,0.48115088]
[1625705280631,1.57417882,33316.0,33315.0,0.48115088]
[1625705282509,1.85228882,33316.0,33315.0,0.48115088]
[1625705283561,1.85228882,33316.0,33305.0,0.24057544]
[1625705283712,2.85228882,33316.0,33305.0,0.24057544]
[1625705283861,1.57484517,33313.0,33305.0,0.24057544]
[1625705284162,1.57314476,33312.0,33305.0,0.24057544]
[1625705284463,1.57306652,33314.0,33305.0,0.24057544]
[1625705284612,0.0904,33313.0,33284.0,0.057]
[1625705284793,1.0,33310.0,33284.0,0.057]
[1625705284914,0.0907,33309.0,33285.0,0.00463903]
[1625705285066,1.0,33305.0,33285.0,0.00463903]
[1625705285216,1.57409358,33303.0,33285.0,0.00463903]
[1625705285364,0.24057544,33293.0,33291.0,0.24057544]
[1625705285518,0.50112544,33293.0,33291.0,0.24057544]
[1625705286867,0.50112544,33293.0,33282.0,0.24057544]
[1625705287167,0.50112544,33293.0,33283.0,0.057]
[1625705287319,0.24057544,33293.0,33288.0,0.24057544]
[1625705288218,0.94015088,33293.0,33288.0,0.24057544]
[1625705288368,0.24057544,33293.0,33288.0,0.29757544]
[1625705288518,0.24057544,33293.0,33288.0,0.24057544]
[1625705289355,0.48115088,33289.0,33282.0,0.48115088]
[1625705290319,0.48115088,33289.0,33283.0,0.057]
[1625705291373,0.48115088,33289.0,33288.0,0.24057544]
[1625705295125,0.48115088,33289.0,33283.0,0.057]
[1625705295277,0.24057544,33284.0,33283.0,0.057]
[1625705295428,0.24057544,33284.0,33282.0,0.48115088]
[1625705295576,0.24057544,33284.0,33282.0,0.53815088]
[1625705296400,0.24057544,33284.0,33283.0,0.002]
[1625705300680,0.24057544,33284.0,33283.0,0.00664351]
[1625705305336,0.24057544,33284.0,33283.0,0.00564351]
[1625705306162,0.52148544,33284.0,33283.0,0.00564351]
[1625705317206,0.61218544,33284.0,33283.0,0.00564351]
[1625705318257,0.52148544,33284.0,33283.0,0.00564351]
[1625705318409,4.85528544,33284.0,33283.0,0.00564351]
[1625705319460,5.09586088,33284.0,33283.0,0.00564351]
[1625705322537,5.09586088,33284.0,33283.0,0.01448617]
[1625705322838,5.09586088,33284.0,33283.0,0.001]
[1625705322987,5.09586088,33284.0,33283.0,0.00565547]
[1625705323516,5.09586088,33284.0,33283.0,0.01449837]
[1625705323812,5.09586088,33284.0,33283.0,0.00565547]
[1625705324490,5.09586088,33284.0,33283.0,0.01449858]
[1625705325388,5.09586088,33284.0,33283.0,0.00565547]
[1625705325689,5.09586088,33284.0,33283.0,0.01449863]
[1625705325838,5.09586088,33284.0,33283.0,0.001]
[1625705325839,0.76206088,33284.0,33283.0,0.001]
[1625705326140,0.76206088,33284.0,33283.0,0.0144989]
[1625705326439,0.76206088,33284.0,33283.0,0.001]
[1625705326739,0.76206088,33284.0,33283.0,0.01449844]
[1625705326888,0.76206088,33284.0,33283.0,0.001]
[1625705327188,0.76206088,33284.0,33283.0,0.0144986]
[1625705330949,1.2891054,33284.0,33283.0,0.0144986]
[1625705332678,0.76206088,33284.0,33283.0,0.0144986]
[1625705333503,1.28948202,33284.0,33283.0,0.0144986]
[1625705333956,1.46562951,33284.0,33283.0,0.0144986]
[1625705335910,2.52148699,33284.0,33283.0,0.0144986]
[1625705336362,1.46562951,33284.0,33283.0,0.0144986]
[1625705337110,2.52154075,33284.0,33283.0,0.0144986]
[1625705337712,1.46562951,33284.0,33283.0,0.0144986]
[1625705337937,2.52210944,33284.0,33283.0,0.0144986]
[1625705338912,1.46562951,33284.0,33283.0,0.0144986]
[1625705339212,1.46562951,33284.0,33283.0,0.18107949]
[1625705339365,1.46562951,33284.0,33283.0,0.51428632]
[1625705339816,2.52355122,33284.0,33283.0,0.68177221]
[1625705341240,2.52355122,33284.0,33283.0,0.0144986]
[1625705341541,2.52355122,33284.0,33283.0,0.92232574]
[1625705343568,2.52355122,33284.0,33283.0,0.90882714]
[1625705344021,3.75912162,33284.0,33283.0,1.90745319]
[1625705344170,3.75912162,33284.0,33283.0,1.92095335]
[1625705345223,3.75912162,33284.0,33283.0,0.9223273]
[1625705347398,5.17213138,33284.0,33283.0,1.92257389]
[1625705348676,5.17213138,33284.0,33283.0,0.9223273]
[1625705349127,5.17213138,33284.0,33283.0,0.83031338]
[1625705349280,5.17213138,33284.0,33283.0,0.83915677]
[1625705349427,5.17213138,33284.0,33283.0,0.58883647]
[1625705350104,5.17213138,33284.0,33283.0,0.57999308]
[1625705350403,5.17213138,33284.0,33283.0,0.33941764]
[1625705350704,6.76219324,33284.0,33283.0,0.25617891]
[1625705350855,6.76219324,33284.0,33283.0,0.00565725]
[1625705353782,6.76219324,33284.0,33283.0,0.08912473]
[1625705353932,6.76219324,33284.0,33283.0,0.00565725]
[1625705356785,7.76219324,33284.0,33283.0,0.00565725]
[1625705358360,7.76219324,33284.0,33278.0,0.59178091]
[1625705358660,6.00574137,33279.0,33278.0,0.002]
[1625705358961,7.00574137,33279.0,33278.0,0.0046545]
[1625705359261,7.00574137,33279.0,33278.0,0.0066545]
[1625705359413,7.00574137,33279.0,33276.0,0.59022993]
[1625705359561,6.00572301,33277.0,33276.0,0.25299539]
[1625705359712,7.01323933,33277.0,33276.0,0.25299539]